bitfinex/quotes_BTCUSD_20260117
["timestamp","ask_amount","ask_price","bid_price","bid_amount"]
[1768650784328,0.01049979,95240.0,95236.0,6.451e-05]
[1768650786533,0.0104999,95239.0,95236.0,6.451e-05]
[1768650788869,0.01049967,95241.0,95236.0,0.01056474]
[1768650789455,0.01049956,95242.0,95237.0,0.01050012]
[1768650789850,0.05249633,95245.0,95238.0,0.01050001]
[1768650790058,0.05249573,95246.0,95240.0,0.01049979]
[1768650790683,0.0524962,95245.0,95239.0,0.0104999]
[1768650790891,0.05249572,95246.0,95240.0,0.01049979]
[1768650791102,0.01049945,95243.0,95239.0,0.0104999]
[1768650791319,0.05249572,95246.0,95239.0,0.0104999]
[1768650791509,0.01049945,95243.0,95239.0,0.0104999]
[1768650791629,0.05249572,95246.0,95240.0,0.01049979]
[1768650791855,0.0524963,95245.0,95239.0,0.0104999]
[1768650792083,0.05249611,95246.0,95240.0,0.01049979]
[1768650792287,0.05249617,95246.0,95237.0,0.0630003]
[1768650792517,0.01049923,95245.0,95240.0,0.01049979]
[1768650793314,0.01049934,95244.0,95240.0,0.01049979]
[1768650793456,0.01049934,95244.0,95239.0,0.0104999]
[1768650793904,0.01049934,95244.0,95240.0,0.01049979]
[1768650794294,0.01049945,95243.0,95237.0,0.01050012]
[1768650794440,0.01049956,95242.0,95238.0,0.06024173]
[1768650794999,0.01049956,95242.0,95238.0,0.04974172]
[1768650795370,0.01049967,95241.0,95238.0,0.04974172]
[1768650797043,0.01049956,95242.0,95238.0,0.04974172]
[1768650797196,0.01049967,95241.0,95238.0,0.04974172]
[1768650797404,0.01049956,95242.0,95238.0,0.04974172]
[1768650798006,0.01049967,95241.0,95238.0,0.04974172]
[1768650798858,0.01049956,95242.0,95238.0,0.04974172]
[1768650799339,0.01049967,95241.0,95238.0,0.04974172]
[1768650799548,0.01049956,95242.0,95238.0,0.06024173]
[1768650799955,0.01049967,95241.0,95238.0,0.04974172]
[1768650800163,0.01049956,95242.0,95238.0,0.04974172]
[1768650800861,0.01049956,95242.0,95238.0,0.06024173]
[1768650801090,0.01049956,95242.0,95238.0,0.04974172]
[1768650801302,0.01049956,95242.0,95238.0,0.06024173]
[1768650801960,0.01049967,95241.0,95238.0,0.04974172]
[1768650802576,0.01049967,95241.0,95236.0,0.0581002]
[1768650803376,0.01049979,95240.0,95236.0,0.04759997]
[1768650803593,0.01049967,95241.0,95237.0,0.05803558]
[1768650804034,0.01049967,95241.0,95236.0,6.451e-05]
[1768650804259,0.01049967,95241.0,95236.0,0.01056474]
[1768650804832,0.01049979,95240.0,95236.0,6.451e-05]
[1768650805047,0.01049967,95241.0,95236.0,6.451e-05]
[1768650805684,0.01049979,95240.0,95236.0,0.0581002]
[1768650806199,0.01049967,95241.0,95236.0,0.0581002]
[1768650806402,0.01049979,95240.0,95236.0,0.0581002]
[1768650806737,0.01049967,95241.0,95236.0,0.0581002]
[1768650806857,0.01049979,95240.0,95236.0,0.0581002]
[1768650808307,0.01049979,95240.0,95236.0,0.04759997]
[1768650808991,0.01049967,95241.0,95236.0,0.0581002]
[1768650809319,0.01049956,95242.0,95237.0,0.01050012]
[1768650809924,0.01049956,95242.0,95237.0,0.01030246]
[1768650810137,0.01049945,95243.0,95239.0,0.0104999]
[1768650810342,0.01049956,95242.0,95237.0,0.05764028]
[1768650812032,0.01049967,95241.0,95237.0,0.05764028]
[1768650813689,0.01049956,95242.0,95237.0,0.05764028]
[1768650814457,0.01049967,95241.0,95237.0,0.05764028]
[1768650814658,0.01049956,95242.0,95237.0,0.05764028]
[1768650815340,0.01049967,95241.0,95237.0,0.05764028]
[1768650819321,0.01049956,95242.0,95237.0,0.05764028]
[1768650821676,0.01049956,95242.0,95237.0,0.01010482]
[1768650822423,0.01049956,95242.0,95238.0,0.01050001]
[1768650827148,0.01049956,95242.0,95237.0,0.01010482]
[1768650827432,0.01049967,95241.0,95236.0,0.01056474]
[1768650828883,0.01049979,95240.0,95236.0,0.01056474]
[1768650829022,0.01049979,95240.0,95236.0,6.451e-05]
[1768650831581,0.01049979,95240.0,95236.0,0.01056474]
[1768650834457,0.01049967,95241.0,95236.0,0.01056474]
[1768650834655,0.01049979,95240.0,95236.0,0.01056474]
[1768650834956,0.01049967,95241.0,95236.0,0.01056474]
[1768650835454,0.01049979,95240.0,95236.0,0.01056474]
[1768650836158,0.01049979,95240.0,95236.0,6.451e-05]
[1768650836304,0.01049979,95240.0,95236.0,0.01056474]
[1768650838099,0.01049979,95240.0,95236.0,6.451e-05]
[1768650838563,0.0104999,95239.0,95236.0,6.451e-05]
[1768650838946,0.01049979,95240.0,95236.0,6.451e-05]
[1768650839515,0.01049979,95240.0,95236.0,0.01056474]
[1768650839716,0.01049967,95241.0,95236.0,0.01056474]
[1768650840369,0.01049967,95241.0,95237.0,0.01050012]
[1768650842733,0.01049967,95241.0,95236.0,0.01056474]
[1768650842976,0.01049979,95240.0,95236.0,0.01056474]
[1768650844376,0.01049967,95241.0,95237.0,0.01050012]
[1768650844901,0.01049956,95242.0,95238.0,0.01050001]
[1768650845510,0.01049945,95243.0,95238.0,0.01050001]
[1768650845687,0.01049956,95242.0,95238.0,0.01050001]
[1768650846068,0.01049956,95242.0,95237.0,0.01050012]
[1768650846269,0.01049934,95244.0,95238.0,0.01050001]
[1768650846483,0.01049945,95243.0,95238.0,0.01050001]
[1768650846914,0.01049945,95243.0,95239.0,0.0104999]
[1768650847086,0.01049901,95247.0,95241.0,0.01049967]
[1768650847450,0.01049912,95246.0,95242.0,0.01049956]
[1768650847583,0.01049901,95247.0,95243.0,0.01049945]
[1768650847792,0.01049901,95247.0,95243.0,0.00558071]
[1768650848178,0.01049901,95247.0,95243.0,0.01049945]
[1768650848383,0.0104989,95248.0,95243.0,0.01049945]
[1768650848596,0.0104989,95248.0,95244.0,0.01049934]
[1768650848819,0.0104989,95248.0,95243.0,0.01049945]
[1768650850497,0.0104989,95248.0,95244.0,0.01049934]
[1768650851313,0.0104989,95248.0,95243.0,0.01049945]
[1768650853202,0.0228333,95254.0,95250.0,0.01049868]
[1768650853421,0.0001592,95254.0,95250.0,0.01049868]
[1768650854235,0.01065744,95254.0,95247.0,0.05249488]
[1768650854848,0.06314874,95254.0,95247.0,0.05249488]
[1768650855013,0.01049846,95252.0,95247.0,0.01049901]
[1768650855335,0.01049857,95251.0,95247.0,0.01049901]
[1768650855536,0.01049835,95253.0,95248.0,0.0104989]
[1768650856227,0.01049846,95252.0,95247.0,0.01049901]
[1768650856629,0.01049857,95251.0,95247.0,0.01049901]
[1768650857625,0.01049868,95250.0,95246.0,0.01049912]
[1768650858278,0.01049857,95251.0,95247.0,0.01049901]
[1768650858774,0.01049868,95250.0,95245.0,0.01049923]
[1768650859605,0.01049879,95249.0,95244.0,0.05872204]
[1768650860498,0.01049879,95249.0,95245.0,0.01049923]
[1768650860840,0.0104989,95248.0,95244.0,0.05872204]
[1768650862880,0.01049901,95247.0,95244.0,0.0482227]
[1768650863080,0.0104989,95248.0,95244.0,0.0482227]
[1768650863295,0.0104989,95248.0,95243.0,0.01049945]
[1768650864297,0.01049901,95247.0,95243.0,0.01049945]
[1768650864916,0.0104989,95248.0,95243.0,0.01049945]
[1768650866665,0.01049879,95249.0,95244.0,0.01049934]
[1768650866868,0.0104989,95248.0,95244.0,0.01049934]
[1768650867604,0.01049901,95247.0,95243.0,0.01049945]
[1768650868229,0.01049901,95247.0,95242.0,0.05615094]
[1768650869856,0.01049879,95249.0,95244.0,0.01049934]
[1768650870259,0.01049901,95247.0,95242.0,0.05615094]
[1768650871092,0.01049879,95249.0,95244.0,0.01049934]
[1768650871319,0.01049901,95247.0,95243.0,0.01049945]
[1768650872265,0.01049879,95249.0,95243.0,0.01049945]
[1768650872998,0.01049901,95247.0,95243.0,0.01049945]
[1768650873206,0.01049879,95249.0,95242.0,0.05615094]
[1768650873207,0.0104989,95248.0,95242.0,0.05615094]
[1768650874043,0.06299384,95248.0,95242.0,0.05615094]
[1768650874160,0.01049901,95247.0,95242.0,0.05615094]
[1768650875231,0.01049901,95247.0,95243.0,0.01049945]
[1768650875636,0.01049901,95247.0,95242.0,0.05615094]
[1768650875831,0.01049901,95247.0,95243.0,0.01049945]
[1768650876113,0.0104989,95248.0,95244.0,0.01049934]
[1768650877389,0.01049879,95249.0,95245.0,0.01049923]
[1768650877598,0.01049868,95250.0,95245.0,0.01049923]
[1768650879820,0.01049868,95250.0,95244.0,0.06299602]
[1768650879821,0.01049868,95250.0,95242.0,0.04565138]
[1768650879981,0.01049868,95250.0,95241.0,0.01049967]
[1768650879982,0.01049923,95245.0,95241.0,0.01049967]
[1768650880391,0.01049923,95245.0,95240.0,0.01049979]
[1768650881027,0.01049934,95244.0,95240.0,0.01049979]
[1768650881232,0.01049934,95244.0,95239.0,0.0572402]
[1768650885099,0.01049923,95245.0,95239.0,0.0572402]
[1768650886307,0.01049923,95245.0,95240.0,0.01049979]
[1768650887108,0.01049923,95245.0,95241.0,0.01049967]
[1768650889353,0.01049912,95246.0,95241.0,0.01049967]
[1768650889579,0.01049912,95246.0,95242.0,0.01049956]
[1768650890316,0.01049912,95246.0,95241.0,0.01049967]
[1768650891514,0.01049912,95246.0,95242.0,0.01049956]
[1768650891715,0.01049923,95245.0,95241.0,0.01049967]
[1768650891940,0.01049912,95246.0,95241.0,0.01049967]
[1768650898227,0.01049934,95244.0,95239.0,0.0572402]
[1768650898472,0.01049912,95246.0,95239.0,0.0572402]
[1768650899302,0.01049912,95246.0,95241.0,0.01049967]
[1768650900371,0.01049923,95245.0,95241.0,0.01049967]
[1768650900594,0.01049912,95246.0,95242.0,0.01049956]
[1768650901400,0.01049912,95246.0,95241.0,0.01049967]
[1768650902036,0.01049901,95247.0,95242.0,0.01049956]
[1768650903005,0.01049912,95246.0,95241.0,0.01049967]
[1768650903440,0.01049912,95246.0,95242.0,0.01049956]
[1768650904213,0.01049912,95246.0,95241.0,0.01049967]
[1768650904884,0.01049901,95247.0,95242.0,0.01049956]
[1768650906771,0.01049912,95246.0,95242.0,0.01049956]
[1768650907874,0.01049901,95247.0,95243.0,0.01049945]
[1768650908036,0.01049912,95246.0,95242.0,0.01049956]
[1768650908241,0.01049912,95246.0,95242.0,0.01045424]
[1768650908543,0.01049901,95247.0,95242.0,0.01045424]
[1768650908739,0.01049879,95249.0,95244.0,0.01049934]
[1768650909621,0.01049868,95250.0,95245.0,0.01049923]
[1768650910157,0.01049879,95249.0,95245.0,0.01049923]
[1768650913422,0.0104989,95248.0,95244.0,0.01049934]
[1768650913960,0.01049879,95249.0,95244.0,0.01049934]
[1768650914160,0.0104989,95248.0,95243.0,0.01049945]
[1768650914402,0.01049901,95247.0,95243.0,0.01049945]
[1768650915564,0.01049901,95247.0,95242.0,0.01045424]
[1768650918801,0.01049912,95246.0,95242.0,0.01045424]
[1768650919101,0.01049923,95245.0,95241.0,0.01049967]
[1768650920049,0.06299414,95247.0,95241.0,0.01049967]
[1768650920050,0.01049901,95247.0,95242.0,0.01049956]
[1768650920245,0.01049912,95246.0,95242.0,0.01049956]
[1768650921227,0.01049912,95246.0,95241.0,0.01049967]
[1768650922744,0.01049912,95246.0,95242.0,0.01049956]
[1768650922946,0.01049923,95245.0,95241.0,0.01049967]
[1768650923152,0.01049912,95246.0,95242.0,0.01049956]
[1768650923780,0.01049923,95245.0,95241.0,0.01049967]
[1768650924521,0.01049912,95246.0,95241.0,0.01049967]
[1768650928604,0.01049923,95245.0,95240.0,0.01049979]
[1768650930463,0.01049934,95244.0,95238.0,0.01050001]
[1768650930661,0.01049945,95243.0,95239.0,0.0104999]
[1768650931041,0.01049945,95243.0,95238.0,0.01050001]
[1768650932899,0.01049956,95242.0,95238.0,0.01050001]
[1768650933100,0.01049945,95243.0,95238.0,0.01050001]
[1768650934636,0.01049956,95242.0,95238.0,0.01050001]
[1768650935189,0.01049967,95241.0,95237.0,0.01050012]
[1768650935400,0.01049956,95242.0,95237.0,0.01050012]
[1768650935577,0.01049945,95243.0,95238.0,0.01050001]
[1768650935993,0.01049934,95244.0,95239.0,0.0104999]
[1768650945503,0.01049934,95244.0,95240.0,0.01049979]
[1768650946285,0.01049923,95245.0,95239.0,0.0104999]
[1768650946493,0.01049923,95245.0,95239.0,0.06299927]
[1768650947072,0.01049923,95245.0,95241.0,0.01049967]
[1768650947272,0.01049912,95246.0,95241.0,0.01045435]
[1768650948177,0.01049923,95245.0,95241.0,0.01045435]
[1768650948817,0.01049923,95245.0,95241.0,0.01040903]
[1768650949706,0.01049923,95245.0,95241.0,0.01049967]
[1768650950459,0.01049923,95245.0,95240.0,0.01049979]
[1768650950974,0.01049923,95245.0,95241.0,0.01049967]
[1768650951144,0.01049912,95246.0,95241.0,0.01049967]
[1768650952446,0.01049923,95245.0,95241.0,0.01049967]
[1768650958216,0.01049912,95246.0,95241.0,0.01049967]
[1768650960851,0.01049923,95245.0,95241.0,0.01049967]
[1768650962645,0.01049923,95245.0,95240.0,0.01049979]
[1768650962851,0.01049945,95243.0,95238.0,0.01050001]
[1768650964504,0.01049945,95243.0,95239.0,0.0104999]
[1768650965240,0.01049956,95242.0,95238.0,0.01050001]
[1768650965677,0.01049945,95243.0,95239.0,0.0104999]
[1768650971890,0.01049934,95244.0,95239.0,0.0104999]
[1768650972292,0.01049945,95243.0,95239.0,0.0104999]
[1768650975505,0.01049923,95245.0,95240.0,0.04801284]
[1768650975716,0.01049934,95244.0,95240.0,0.05851263]
[1768650977006,0.01049923,95245.0,95240.0,0.05851263]
[1768650980352,0.01049923,95245.0,95240.0,0.058315]
[1768650980554,0.01049912,95246.0,95241.0,0.01049967]
[1768650980754,0.01049912,95246.0,95241.0,0.01045435]
[1768650980973,0.01049912,95246.0,95241.0,0.05846719]
[1768650983200,0.01049912,95246.0,95242.0,0.01049956]
[1768650984680,0.01049901,95247.0,95242.0,0.01049956]
[1768650985198,0.01049901,95247.0,95243.0,0.01049945]
[1768650985433,0.01049879,95249.0,95244.0,0.01049934]
[1768650986581,0.0104989,95248.0,95243.0,0.01049945]
[1768650986944,0.0104989,95248.0,95244.0,0.01049934]
[1768650987144,0.0104989,95248.0,95243.0,0.01049945]
[1768650987343,0.01049901,95247.0,95243.0,0.01049945]
[1768650988247,0.0104989,95248.0,95243.0,0.01049945]
[1768650989180,0.0104989,95248.0,95244.0,0.01049934]
[1768650989738,0.01049879,95249.0,95244.0,0.01049934]
[1768650990363,0.01049846,95252.0,95245.0,0.05653348]
[1768650990568,0.01049879,95249.0,95245.0,0.05653348]
[1768650990763,0.01049879,95249.0,95245.0,0.04603425]
[1768650992431,0.0104989,95248.0,95245.0,0.04603425]
[1768650995062,0.01049879,95249.0,95245.0,0.04603425]
[1768650995275,0.0104989,95248.0,95245.0,0.04603425]
[1768650996145,0.01049879,95249.0,95245.0,0.04603425]
[1768650996351,0.0104989,95248.0,95245.0,0.04603425]
[1768650997814,0.01049879,95249.0,95245.0,0.04603425]
[1768650998167,0.0104989,95248.0,95245.0,0.04603425]
[1768650998362,0.01049879,95249.0,95245.0,0.04603425]
[1768650998827,0.0104989,95248.0,95245.0,0.04603425]
[1768651000342,0.0104989,95248.0,95244.0,0.01049934]
[1768651003598,0.0104989,95248.0,95243.0,0.01049945]
[1768651003896,0.0104989,95248.0,95244.0,0.01049934]
[1768651004314,0.0104989,95248.0,95243.0,0.01049945]
[1768651004680,0.01049901,95247.0,95243.0,0.01049945]
[1768651004885,0.0104989,95248.0,95243.0,0.05649331]
[1768651005116,0.01049901,95247.0,95243.0,0.04599386]
[1768651005857,0.01049901,95247.0,95242.0,0.01049956]
[1768651006475,0.01049901,95247.0,95243.0,0.01049945]
[1768651007339,0.01049901,95247.0,95242.0,0.01049956]
[1768651007565,0.01049912,95246.0,95242.0,0.01049956]
[1768651007762,0.01049901,95247.0,95242.0,0.01049956]
[1768651008683,0.01049912,95246.0,95242.0,0.01049956]
[1768651008842,0.01049912,95246.0,95242.0,0.04599386]
[1768651009537,0.01049923,95245.0,95242.0,0.04599386]
[1768651009745,0.01049923,95245.0,95240.0,0.17319386]
[1768651010345,0.01049934,95244.0,95240.0,0.17319386]
[1768651011008,0.01049945,95243.0,95240.0,0.17319386]
[1768651011445,0.01049945,95243.0,95240.0,0.1272]
[1768651012641,0.01049945,95243.0,95240.0,0.12715469]
[1768651021880,0.01049945,95243.0,95236.0,6.451e-05]
[1768651021881,0.0104999,95239.0,95236.0,6.451e-05]
[1768651022083,0.05250054,95238.0,95236.0,6.451e-05]
[1768651022295,0.0525006,95237.0,95236.0,6.451e-05]
[1768651023271,0.05250014,95238.0,95236.0,6.451e-05]
[1768651025569,0.0525006,95237.0,95236.0,6.451e-05]
[1768651026553,0.0525006,95237.0,95236.0,1.92e-05]
[1768651027120,0.05250017,95238.0,95236.0,1.92e-05]
[1768651027901,0.0525006,95237.0,95236.0,1.92e-05]
[1768651028788,0.0104999,95239.0,95236.0,1.92e-05]
[1768651028948,0.0525006,95237.0,95236.0,1.92e-05]
[1768651029906,0.06299987,95239.0,95236.0,1.92e-05]
[1768651030315,0.0525006,95237.0,95236.0,1.92e-05]
[1768651034373,0.05242237,95237.0,95236.0,1.92e-05]
[1768651043987,0.0104999,95239.0,95236.0,1.92e-05]
[1768651044430,0.06299947,95239.0,95236.0,1.92e-05]
[1768651044856,0.00036412,95237.0,95236.0,1.92e-05]
[1768651051407,0.05286472,95237.0,95236.0,1.92e-05]
[1768651051619,0.00036412,95237.0,95236.0,1.92e-05]
[1768651052404,0.05286472,95237.0,95236.0,1.92e-05]
[1768651054279,0.00036412,95237.0,95236.0,1.92e-05]
[1768651054790,0.05286472,95237.0,95236.0,1.92e-05]
[1768651055400,0.00036412,95237.0,95236.0,1.92e-05]
[1768651065383,0.01049979,95240.0,95236.0,0.01051943]
[1768651065800,0.01049979,95240.0,95236.0,1.92e-05]
[1768651066739,0.01049979,95240.0,95236.0,0.01051943]
[1768651067816,0.0104999,95239.0,95236.0,1.92e-05]
[1768651069104,0.01049979,95240.0,95236.0,1.92e-05]
[1768651071495,0.0104999,95239.0,95236.0,1.92e-05]
[1768651071880,0.25813134,95254.0,95236.0,0.05690221]
[1768651072098,0.01049923,95245.0,95240.0,0.01049979]
[1768651072500,0.01049912,95246.0,95241.0,0.01049967]
[1768651072957,0.01049934,95244.0,95239.0,0.0104999]
[1768651074780,0.01049934,95244.0,95240.0,0.01049979]
[1768651074983,0.01049912,95246.0,95241.0,0.01049967]
[1768651075302,0.01049923,95245.0,95241.0,0.01049967]
[1768651076220,0.01049912,95246.0,95241.0,0.01049967]
[1768651076624,0.01049912,95246.0,95241.0,0.01030237]
[1768651076821,0.01049923,95245.0,95240.0,0.01049979]
[1768651077078,0.01049912,95246.0,95241.0,0.01049967]
[1768651078306,0.01049912,95246.0,95242.0,0.01049956]
[1768651080481,0.01049901,95247.0,95243.0,0.01049945]
[1768651080718,0.01049912,95246.0,95242.0,0.01049956]
[1768651082387,0.01049901,95247.0,95242.0,0.01049956]
[1768651082592,0.01049912,95246.0,95241.0,0.01049967]
[1768651083027,0.01049901,95247.0,95242.0,0.01049956]
[1768651083165,0.01049912,95246.0,95242.0,0.01049956]
[1768651083800,0.01049901,95247.0,95243.0,0.01049945]
[1768651084003,0.01049901,95247.0,95242.0,0.01049956]
[1768651084231,0.01049912,95246.0,95242.0,0.01049956]
[1768651085633,0.01049912,95246.0,95241.0,0.01049967]
[1768651085852,0.01049901,95247.0,95242.0,0.01049956]
[1768651087266,0.01049912,95246.0,95242.0,0.01049956]
[1768651087947,0.01049901,95247.0,95242.0,0.01049956]
[1768651088933,0.01049912,95246.0,95242.0,0.01049956]
[1768651089496,0.01049901,95247.0,95242.0,0.01049956]
[1768651091752,0.01049901,95247.0,95243.0,0.01049945]
[1768651091951,0.01049912,95246.0,95242.0,0.01049956]
[1768651092910,0.01049901,95247.0,95242.0,0.01049956]
[1768651093114,0.01049912,95246.0,95242.0,0.01049956]
[1768651094723,0.01049901,95247.0,95243.0,0.01049945]
[1768651094933,0.01049912,95246.0,95241.0,0.01049967]
[1768651095140,0.01049923,95245.0,95241.0,0.01049967]
[1768651095539,0.01049912,95246.0,95242.0,0.01049956]
[1768651095734,0.01049901,95247.0,95242.0,0.01049956]
[1768651096396,0.01049901,95247.0,95243.0,0.01049945]
[1768651096783,0.0104989,95248.0,95243.0,0.01049945]
[1768651097647,0.01049901,95247.0,95243.0,0.01049945]
[1768651098613,0.13769879,95249.0,95245.0,0.01049923]
[1768651098822,0.13769879,95249.0,95244.0,0.01049934]
[1768651099850,0.13769879,95249.0,95245.0,0.01049923]
[1768651100577,0.13769879,95249.0,95244.0,0.01049934]
[1768651100781,0.0104989,95248.0,95244.0,0.01049934]
[1768651102672,0.13769879,95249.0,95244.0,0.01049934]
[1768651103438,0.0104989,95248.0,95244.0,0.01049934]
[1768651103638,0.1272,95249.0,95246.0,0.01049912]
[1768651103978,0.02099824,95250.0,95247.0,0.01049901]
[1768651103979,0.1272,95250.0,95247.0,0.01049901]
[1768651104152,0.1272,95250.0,95246.0,0.01049912]
[1768651105734,0.1272,95250.0,95247.0,0.01049901]
[1768651106161,0.1272,95250.0,95246.0,0.01049912]
[1768651106371,0.1272,95250.0,95244.0,0.01049934]
[1768651106372,0.01049879,95249.0,95244.0,0.01049934]
[1768651106588,0.01049879,95249.0,95245.0,0.01049923]
[1768651106798,0.13769868,95250.0,95245.0,0.01049923]
[1768651107482,0.01049879,95249.0,95245.0,0.01049923]
[1768651107684,0.13769868,95250.0,95245.0,0.01049923]
[1768651109404,0.13769868,95250.0,95246.0,0.01049912]
[1768651109611,0.1272,95250.0,95246.0,0.01049912]
[1768651109810,0.1272,95250.0,95247.0,0.01049901]
[1768651110425,0.02099791,95251.0,95247.0,0.01049901]
[1768651110806,0.01049868,95250.0,95244.0,0.01049934]
[1768651111329,0.01049879,95249.0,95245.0,0.01049923]
[1768651111748,0.01049868,95250.0,95246.0,0.01049912]
[1768651112221,0.01049879,95249.0,95245.0,0.01049923]
[1768651112646,0.01049879,95249.0,95244.0,0.01049934]
[1768651113398,0.01049879,95249.0,95245.0,0.01049923]
[1768651113547,0.01049868,95250.0,95245.0,0.01049923]
[1768651114359,0.01049879,95249.0,95245.0,0.01049923]
[1768651116209,0.01049879,95249.0,95244.0,0.01049934]
[1768651116412,0.01049879,95249.0,95245.0,0.01049923]
[1768651117015,0.01049868,95250.0,95246.0,0.01049912]
[1768651117952,0.01049868,95250.0,95244.0,0.01049934]
[1768651117953,0.0104989,95248.0,95244.0,0.01049934]
[1768651118132,0.01049879,95249.0,95244.0,0.01049934]
[1768651118570,0.01049879,95249.0,95245.0,0.01049923]
[1768651119624,0.01049879,95249.0,95244.0,0.01049934]
[1768651120160,0.0104989,95248.0,95240.0,0.30645322]
[1768651120369,0.01049912,95246.0,95241.0,0.05938665]
[1768651120562,0.01040848,95246.0,95241.0,0.05938665]
[1768651120951,0.01049923,95245.0,95241.0,0.05938665]
[1768651121778,0.01049923,95245.0,95241.0,0.04888698]
[1768651126235,0.01040848,95246.0,95241.0,0.05938665]
[1768651126643,0.01049923,95245.0,95241.0,0.05938665]
[1768651127326,0.01040848,95246.0,95241.0,0.05938665]
[1768651127527,0.01049923,95245.0,95241.0,0.05938665]
[1768651129807,0.01049901,95247.0,95242.0,0.01049956]
[1768651129942,0.01049912,95246.0,95242.0,0.01049956]
[1768651130360,0.01049901,95247.0,95242.0,0.01049956]
[1768651130765,0.01049912,95246.0,95242.0,0.01049956]
[1768651131032,0.01049901,95247.0,95243.0,0.01049945]
[1768651131428,0.01049923,95245.0,95241.0,0.05938665]
[1768651132409,0.01049923,95245.0,95241.0,0.04888698]
[1768651132638,0.01049912,95246.0,95241.0,0.05938665]
[1768651133012,0.01049923,95245.0,95241.0,0.05938665]
[1768651135844,0.01049912,95246.0,95241.0,0.05938665]
[1768651136050,0.01049912,95246.0,95242.0,0.01049956]
[1768651136240,0.01040848,95246.0,95242.0,0.01049956]
[1768651136401,0.01040848,95246.0,95241.0,0.05938665]
[1768651137059,0.01049923,95245.0,95241.0,0.05938665]
[1768651137266,0.01049923,95245.0,95241.0,0.01049967]
[1768651138346,0.01040848,95246.0,95241.0,0.01049967]
[1768651140216,0.01049923,95245.0,95240.0,0.01049979]
[1768651141078,0.01049934,95244.0,95240.0,0.01049979]
[1768651141606,0.01049923,95245.0,95241.0,0.01049967]
[1768651141806,0.01049923,95245.0,95240.0,0.01049979]
[1768651142097,0.01049923,95245.0,95240.0,0.05944617]
[1768651142527,0.01049923,95245.0,95241.0,0.01049967]
[1768651142914,0.01049923,95245.0,95240.0,0.04894638]
[1768651143138,0.01049923,95245.0,95241.0,0.01049967]
[1768651144099,0.01049934,95244.0,95240.0,0.04894638]
[1768651144300,0.01049934,95244.0,95240.0,0.05944617]
[1768651144956,0.01049923,95245.0,95240.0,0.05944617]
[1768651145205,0.01049923,95245.0,95241.0,0.01049967]
[1768651146055,0.01049923,95245.0,95240.0,0.05944617]
[1768651147829,0.01049934,95244.0,95240.0,0.05944617]
[1768651148473,0.01049945,95243.0,95239.0,0.0104999]
[1768651148641,0.01049923,95245.0,95240.0,0.01049979]
[1768651148844,0.01049934,95244.0,95240.0,0.01049979]
[1768651149088,0.01049923,95245.0,95240.0,0.01049979]
[1768651149667,0.01049945,95243.0,95239.0,0.0104999]
[1768651149875,0.06299573,95245.0,95239.0,0.0104999]
[1768651149876,0.01049934,95244.0,95240.0,0.01049979]
[1768651150102,0.01049934,95244.0,95239.0,0.0104999]
[1768651150523,0.01049945,95243.0,95238.0,0.05944639]
[1768651150678,0.01049934,95244.0,95239.0,0.0104999]
[1768651151052,0.01049945,95243.0,95238.0,0.05944639]
[1768651151260,0.06299625,95244.0,95239.0,0.0104999]
[1768651151261,0.01049934,95244.0,95239.0,0.0104999]
[1768651152390,0.01049945,95243.0,95239.0,0.0104999]
[1768651152979,0.01049945,95243.0,95238.0,0.04894638]
[1768651153179,0.01049945,95243.0,95239.0,0.0104999]
[1768651153586,0.01049945,95243.0,95238.0,0.05944639]
[1768651153747,0.01049956,95242.0,95238.0,0.04894638]
[1768651153948,0.01049956,95242.0,95238.0,0.05944639]
[1768651154137,0.01049945,95243.0,95238.0,0.05944639]
[1768651155564,0.01049956,95242.0,95238.0,0.05944639]
[1768651156213,0.01049945,95243.0,95239.0,0.0104999]
[1768651157789,0.01049945,95243.0,95238.0,0.05944639]
[1768651157998,0.01049945,95243.0,95239.0,0.0104999]
[1768651158376,0.01049945,95243.0,95238.0,0.05944639]
[1768651159307,0.01049945,95243.0,95239.0,0.0104999]
[1768651161828,0.01049879,95249.0,95244.0,0.01049934]
[1768651162043,0.05265078,95254.0,95245.0,0.01049923]
[1768651162276,0.0629919,95251.0,95244.0,0.05875178]
[1768651162881,0.01049868,95250.0,95244.0,0.05875178]
[1768651164366,0.01049846,95252.0,95246.0,0.05249524]
[1768651164580,0.01049846,95252.0,95245.0,0.01049923]
[1768651164581,0.01049857,95251.0,95247.0,0.01049901]
[1768651164991,0.01049857,95251.0,95246.0,0.01049912]
[1768651166093,0.01049791,95257.0,95248.0,0.05875134]
[1768651166305,0.02348801,95254.0,95249.0,0.04825244]
[1768651166519,0.05249178,95253.0,95247.0,0.01049901]
[1768651166934,0.01049846,95252.0,95248.0,0.0104989]
[1768651167489,0.01049835,95253.0,95248.0,0.0104989]
[1768651169261,0.01049846,95252.0,95247.0,0.01049901]
[1768651169477,0.01049846,95252.0,95248.0,0.0104989]
[1768651169814,0.0629877,95257.0,95248.0,0.0104989]
[1768651170020,0.0629877,95257.0,95250.0,0.01049868]
[1768651170134,0.01049813,95255.0,95250.0,0.01049868]
[1768651170545,0.01049824,95254.0,95250.0,0.01049868]
[1768651171172,0.01049758,95260.0,95249.0,0.01049879]
[1768651171500,0.01049758,95260.0,95256.0,0.01049802]
[1768651171704,0.01049758,95260.0,95255.0,0.01049813]
[1768651172757,0.01049758,95260.0,95256.0,0.01049802]
[1768651173219,0.01049747,95261.0,95256.0,0.01049802]
[1768651173454,0.01049758,95260.0,95256.0,0.01049802]
[1768651174805,0.01049736,95262.0,95257.0,0.01049791]
[1768651177064,0.0001592,95264.0,95258.0,0.0104978]
[1768651177269,0.0001592,95264.0,95261.0,0.01049747]
[1768651178148,0.0001592,95264.0,95260.0,0.01049758]
[1768651178364,0.01065634,95264.0,95260.0,0.01049758]
[1768651179406,0.0001592,95264.0,95261.0,0.01049747]
[1768651179632,0.0001592,95264.0,95261.0,0.06298481]
[1768651179832,0.0001592,95264.0,95261.0,0.01049747]
[1768651180431,0.0001592,95264.0,95261.0,0.06298483]
[1768651180949,0.0001592,95264.0,95261.0,0.01049747]
[1768651181474,0.0001592,95264.0,95260.0,0.01049758]
[1768651181806,0.0001592,95264.0,95259.0,0.01049769]
[1768651181999,0.0001592,95264.0,95261.0,0.01049747]
[1768651182214,0.0001592,95264.0,95260.0,0.01049758]
[1768651182625,0.0001592,95264.0,95261.0,0.01049747]
[1768651183063,0.0001592,95264.0,95261.0,0.06298431]
[1768651184323,0.0001592,95264.0,95261.0,0.01049747]
[1768651185635,0.0001592,95264.0,95261.0,0.06298473]
[1768651186747,0.0001592,95264.0,95261.0,0.01049747]
[1768651186951,0.0001592,95264.0,95261.0,0.06298474]
[1768651188215,0.0001592,95264.0,95262.0,0.05248662]
[1768651188796,0.0001592,95264.0,95261.0,0.01049747]
[1768651189398,0.0001592,95264.0,95261.0,0.06298474]
[1768651191290,0.0002,95269.0,95266.0,0.01049692]
[1768651191487,0.0002,95269.0,95266.0,0.01032388]
[1768651191691,0.0002,95269.0,95265.0,0.01049703]
[1768651192094,0.01069659,95269.0,95265.0,0.01049703]
[1768651192293,0.0002,95269.0,95265.0,0.01049703]
[1768651192493,0.00024962,95269.0,95265.0,0.01049703]
[1768651192750,0.00024962,95269.0,95266.0,0.01049692]
[1768651193337,0.00024962,95269.0,95265.0,0.02309347]